[Event "2nd Serbian League-Vojvodina 2023"]
[Site "Novi Sad"]
[Date "2023.11.09"]
[Round "11.13"]
[White "Agdelen, Huseyin Can"]
[Black "Andjusic, Ilija"]
[Result "1-0"]
[ECO "E80"]
[WhiteElo "2401"]
[BlackElo "1709"]
[Annotator "RC"]
[PlyCount "43"]
[EventDate "2023.10.22"]
[EventType "team-tourn"]
[EventCountry "SRB"]
[SourceTitle "playchess.com"]
[Source "ChessBase"]
[SourceQuality "1"]
[TimeControl "40/5400+30:1800+30"]

1. d4 {[%emt 1:31:00]} Nf6 {[%emt 1:31:00]} 2. c4 {[%emt 0:00:30]} d6 {[%emt 0:00:30]} 3. Nc3 {[%emt 0:00:30]} g6 {[%emt 0:00:30]} 4. e4 {[%emt 0:00:30]} Bg7 {[%emt 0:00:30]} 5. f3 {[%emt 0:00:30]} Nc6 {[%emt 0:00:30]} 6. Nge2 {[%emt 0:00:30]} e5 {[%emt 0:00:30]} 7. d5 {[%emt 0:00:30]} Ne7 {[%emt 0:00:30]} 8. Be3 {[%emt 0:00:30]} a6 {[%emt 0:00:30]} 9. Qd2 {[%emt 0:00:30]} Bd7 {[%emt 0:00:30]} 10. Bh6 {[%emt 0:00:30]} O-O {[%emt 0:00:30]} 11. h4 {[%emt 0:00:30]} Kh8 {[%emt 0:00:30]} 12. Bxg7+ {[%emt 0:00:30]} Kxg7 {[%emt 0:00:30]} 13. h5 {[%emt 0:00:30]} Nxh5 {[%emt 0:00:30]} 14. g4 {[%emt 0:00:30]} Nf4 {[%emt 0:00:30]} 15. Nxf4 {[%emt 0:00:30]} exf4 {[%emt 0:00:30]} 16. Qh2 {[%emt 0:00:30]} Rh8 {[%emt 0:00:30]} 17. Qh6+ {[%emt 0:00:30]} Kg8 {[%emt 0:00:30]} 18. Qxf4 {[%emt 0:00:30]} Qf8 {[%emt 0:00:30]} 19. e5 {[%emt 0:00:30]} Re8 {[%emt 0:00:30]} 20. Ne4 {[%emt 0:00:30]} Nxd5 {[%emt 0:00:30]} 21. cxd5 {[%emt 0:00:30]} Rxe5 {[%emt 0:00:30]} 22. O-O-O {[%emt 0:00:30]} 1-0

[Event "2nd Serbian League-Vojvodina 2023"]
[Site "Novi Sad"]
[Date "2023.11.09"]
[Round "11.14"]
[White "Samani, Yamac"]
[Black "Lalic, Bogdan"]
[Result "1-0"]
[ECO "B12"]
[WhiteElo "2349"]
[BlackElo "2345"]
[Annotator "RC"]
[PlyCount "99"]
[EventDate "2023.10.22"]
[EventType "team-tourn"]
[EventCountry "SRB"]
[SourceTitle "playchess.com"]
[Source "ChessBase"]
[SourceQuality "1"]
[TimeControl "40/5400+30:1800+30"]

1. e4 {[%emt 1:31:00]} c6 {[%emt 1:31:00]} 2. d4 {[%emt 0:00:30]} d5 {[%emt 0:00:00]} 3. e5 Bf5 {[%emt 0:01:00]} 4. h4 {[%emt 0:01:00]} h6 {[%emt 0:00:30]} 5. g4 {[%emt 0:00:30]} Bd7 {[%emt 0:00:30]} 6. Be3 {[%emt 0:00:30]} Qc8 {[%emt 0:00:30]} 7. Be2 {[%emt 0:00:30]} h5 {[%emt 0:00:30]} 8. gxh5 {[%emt 0:00:00]} Nh6 {[%emt 0:00:30]} 9. Nc3 {[%emt 0:01:00]} Bf5 {[%emt 0:00:30]} 10. Qd2 {[%emt 0:00:00]} e6 11. Nf3 {[%emt 0:01:00]} Nd7 {[%emt 0:01:00]} 12. Rg1 {[%emt 0:00:30]} Qc7 {[%emt 0:00:30]} 13. O-O-O {[%emt 0:00:30]} O-O-O {[%emt 0:00:30]} 14. Kb1 {[%emt 0:00:30]} b5 {[%emt 0:00:30]} 15. Bg5 {[%emt 0:00:30]} f6 {[%emt 0:00:30]} 16. Bf4 {[%emt 0:00:30]} Qb6 {[%emt 0:00:30]} 17. Rde1 {[%emt 0:00:30]} Nf7 {[%emt 0:00:30]} 18. h6 {[%emt 0:00:30]} Nxh6 {[%emt 0:00:00]} 19. exf6 gxf6 {[%emt 0:01:00]} 20. Bd3 {[%emt 0:01:00]} Re8 {[%emt 0:00:30]} 21. Re2 {[%emt 0:00:30]} Bxd3 {[%emt 0:00:00]} 22. Qxd3 {[%emt 0:00:00]} b4 23. Nd1 {[%emt 0:01:00]} Nf7 {[%emt 0:01:30]} 24. Rge1 {[%emt 0:00:30]} Nd8 {[%emt 0:00:30]} 25. c4 {[%emt 0:00:30]} dxc4 {[%emt 0:00:30]} 26. Qxc4 {[%emt 0:00:30]} Kb7 {[%emt 0:00:00]} 27. Ne3 Qb5 {[%emt 0:01:00]} 28. Qxb5+ {[%emt 0:00:00]} cxb5 {[%emt 0:00:30]} 29. Rc2 {[%emt 0:00:00]} e5 30. dxe5 {[%emt 0:02:00]} fxe5 {[%emt 0:00:00]} 31. Rd1 {[%emt 0:00:00]} Nc5 32. Bxe5 {[%emt 0:01:00]} Rh5 {[%emt 0:00:00]} 33. Bg3 Nde6 {[%emt 0:02:30]} 34. Nd4 {[%emt 0:00:00]} Nxd4 35. Rxd4 {[%emt 0:01:30]} a5 {[%emt 0:00:00]} 36. Rf4 Bd6 {[%emt 0:01:30]} 37. Rf7+ {[%emt 0:00:00]} Re7 {[%emt 0:00:00]} 38. Rf5 Rxf5 {[%emt 0:01:00]} 39. Nxf5 {[%emt 0:00:00]} Re1+ {[%emt 0:00:00]} 40. Rc1 Rxc1+ {[%emt 0:01:00]} 41. Kxc1 {[%emt 0:33:00]} Bf8 {[%emt 0:15:01]} 42. h5 Ne4 {[%emt 0:15:59]} 43. h6 {[%emt 0:01:00]} Nf6 {[%emt 0:00:00]} 44. Bd6 Bxd6 {[%emt 0:01:00]} 45. Nxd6+ {[%emt 0:01:00]} Kc6 {[%emt 0:00:30]} 46. Ne4 {[%emt 0:00:00]} Nh7 {[%emt 0:00:00]} 47. f4 {[%emt 0:01:00]} Kd5 {[%emt 0:00:00]} 48. Ng5 Nf8 {[%emt 0:00:00]} 49. h7 Ng6 {[%emt 0:00:00]} 50. f5 {[%emt 0:00:00]} 1-0

[Event "2nd Serbian League-Vojvodina 2023"]
[Site "Novi Sad"]
[Date "2023.11.09"]
[Round "11.15"]
[White "Grujic, Zoran"]
[Black "Alimpic, Aleksa"]
[Result "1/2-1/2"]
[ECO "D27"]
[WhiteElo "2315"]
[BlackElo "2290"]
[Annotator "RC"]
[PlyCount "39"]
[EventDate "2023.10.22"]
[EventType "team-tourn"]
[EventCountry "SRB"]
[SourceTitle "playchess.com"]
[Source "ChessBase"]
[SourceQuality "1"]
[TimeControl "40/5400+30:1800+30"]

1. Nf3 {[%emt 0:00:07]} d5 {[%emt 0:00:05]} 2. d4 {[%emt 0:00:29]} Nf6 {[%emt 0:00:06]} 3. c4 {[%emt 0:00:07]} dxc4 {[%emt 0:00:05]} 4. e3 {[%emt 0:00:16]} e6 {[%emt 0:00:15]} 5. Bxc4 {[%emt 0:00:05]} c5 {[%emt 0:00:09]} 6. O-O {[%emt 0:00:38]} a6 {[%emt 0:00:13]} 7. a4 {[%emt 0:01:45]} cxd4 {[%emt 0:00:08]} 8. Nxd4 {[%emt 0:00:21]} Bd7 {[%emt 0:00:11]} 9. b3 {[%emt 0:00:46]} Nc6 {[%emt 0:00:13]} 10. Bb2 {[%emt 0:00:15]} Bb4 {[%emt 0:01:40]} 11. Nd2 {[%emt 0:03:32]} O-O {[%emt 0:00:52]} 12. N2f3 {[%emt 0:00:30]} Qe7 {[%emt 0:03:46]} 13. Bd3 {[%emt 0:07:35]} Rfd8 {[%emt 0:03:12]} 14. Qe2 {[%emt 0:02:52]} Rac8 {[%emt 0:04:40]} 15. Rfd1 {[%emt 0:03:01]} Nd5 {[%emt 0:03:28]} 16. Rac1 {[%emt 0:10:32]} Nxd4 {[%emt 0:07:25]} 17. Bxd4 {[%emt 0:04:21]} Nc3 {[%emt 0:01:51]} 18. Bxc3 {[%emt 0:00:13]} Bxc3 {[%emt 0:00:17]} 19. Be4 {[%emt 0:11:04]} Bf6 {[%emt 0:19:38]} 20. Bxb7 {[%emt 0:02:43]} 1/2-1/2

[Event "2nd Serbian League-Vojvodina 2023"]
[Site "Novi Sad"]
[Date "2023.11.09"]
[Round "11.16"]
[White "Pajcin, Lav"]
[Black "Dragojlovic, Andjelko"]
[Result "1-0"]
[ECO "E76"]
[WhiteElo "2109"]
[BlackElo "2108"]
[Annotator "RC"]
[PlyCount "85"]
[EventDate "2023.10.22"]
[EventType "team-tourn"]
[EventCountry "SRB"]
[SourceTitle "playchess.com"]
[Source "ChessBase"]
[SourceQuality "1"]
[TimeControl "40/5400+30:1800+30"]

1. d4 {[%emt 1:31:00]} g6 {[%emt 1:31:00]} 2. c4 {[%emt 0:00:30]} Bg7 3. Nc3 {[%emt 0:00:30]} Nf6 {[%emt 0:01:00]} 4. e4 O-O {[%emt 0:00:30]} 5. Be2 {[%emt 0:01:00]} c6 {[%emt 0:00:30]} 6. f4 {[%emt 0:00:30]} d6 {[%emt 0:00:30]} 7. Nf3 {[%emt 0:00:30]} Bg4 {[%emt 0:00:30]} 8. Be3 {[%emt 0:00:30]} Nbd7 {[%emt 0:00:30]} 9. O-O {[%emt 0:00:30]} Bxf3 {[%emt 0:00:30]} 10. Bxf3 {[%emt 0:00:30]} e5 {[%emt 0:00:30]} 11. fxe5 {[%emt 0:00:00]} dxe5 12. d5 {[%emt 0:01:00]} cxd5 13. cxd5 {[%emt 0:00:30]} Ne8 {[%emt 0:01:30]} 14. Qb3 {[%emt 0:00:00]} Nd6 15. Nb5 {[%emt 0:01:00]} Nxb5 16. Qxb5 {[%emt 0:00:30]} b6 {[%emt 0:01:30]} 17. Rac1 {[%emt 0:00:00]} f5 18. d6 {[%emt 0:01:00]} f4 {[%emt 0:01:00]} 19. Bf2 {[%emt 0:00:30]} Kh8 {[%emt 0:00:30]} 20. Rc7 {[%emt 0:00:30]} Nc5 {[%emt 0:00:30]} 21. Bxc5 {[%emt 0:00:00]} bxc5 22. Qxc5 {[%emt 0:00:00]} Qb8 23. b4 {[%emt 0:01:30]} Qb6 {[%emt 0:01:30]} 24. Rc6 {[%emt 0:00:30]} Qd8 {[%emt 0:00:30]} 25. Rd1 {[%emt 0:00:30]} Qh4 {[%emt 0:00:30]} 26. d7 {[%emt 0:00:30]} Rad8 {[%emt 0:00:30]} 27. Rc8 {[%emt 0:00:30]} h5 {[%emt 0:00:30]} 28. Rxd8 {[%emt 0:00:30]} Rxd8 {[%emt 0:00:30]} 29. Qf2 {[%emt 0:00:30]} Qe7 {[%emt 0:00:30]} 30. Qc5 {[%emt 0:00:30]} Qh4 {[%emt 0:00:30]} 31. Qb6 {[%emt 0:00:00]} a5 32. Qxa5 Kh7 {[%emt 0:00:00]} 33. Qc7 {[%emt 0:01:30]} Bf6 {[%emt 0:01:30]} 34. Qd6 {[%emt 0:00:30]} Be7 {[%emt 0:00:30]} 35. Qxe5 {[%emt 0:00:30]} Bxb4 {[%emt 0:00:30]} 36. Qb5 {[%emt 0:00:30]} Be1 {[%emt 0:00:30]} 37. Qe2 {[%emt 0:00:30]} Bb4 {[%emt 0:00:30]} 38. e5 {[%emt 0:00:30]} Kh6 {[%emt 0:00:30]} 39. e6 {[%emt 0:00:30]} Be7 {[%emt 0:00:00]} 40. Qe5 Rf8 {[%emt 0:01:00]} 41. a4 {[%emt 0:04:05]} g5 42. d8=Q {[%emt 0:27:25]} Rxd8 {[%emt 0:00:00]} 43. Rxd8 {[%emt 0:00:00]} 1-0

[Event "2nd Serbian League-Vojvodina 2023"]
[Site "Novi Sad"]
[Date "2023.11.09"]
[Round "11.17"]
[White "Stikovic, Dobrica"]
[Black "Gagic, Milan A"]
[Result "1/2-1/2"]
[ECO "D32"]
[WhiteElo "2162"]
[BlackElo "2164"]
[Annotator "RC"]
[PlyCount "50"]
[EventDate "2023.10.22"]
[EventType "team-tourn"]
[EventCountry "SRB"]
[SourceTitle "playchess.com"]
[Source "ChessBase"]
[SourceQuality "1"]
[TimeControl "40/5400+30:1800+30"]

1. Nf3 {[%emt 1:31:00]} Nf6 {[%emt 1:31:00]} 2. c4 {[%emt 0:00:30]} e6 {[%emt 0:00:30]} 3. Nc3 {[%emt 0:00:30]} d5 {[%emt 0:00:30]} 4. cxd5 {[%emt 0:00:30]} exd5 {[%emt 0:00:30]} 5. d4 {[%emt 0:00:30]} c5 {[%emt 0:00:30]} 6. Bf4 {[%emt 0:00:30]} Nc6 {[%emt 0:00:30]} 7. e3 {[%emt 0:00:30]} c4 {[%emt 0:00:30]} 8. Be2 {[%emt 0:00:30]} Bb4 {[%emt 0:00:30]} 9. O-O {[%emt 0:00:30]} O-O {[%emt 0:00:30]} 10. Ne5 {[%emt 0:00:30]} Bf5 {[%emt 0:00:30]} 11. g4 {[%emt 0:00:30]} Bg6 {[%emt 0:00:30]} 12. f3 {[%emt 0:00:30]} Bxc3 {[%emt 0:00:30]} 13. bxc3 {[%emt 0:00:30]} Nd7 {[%emt 0:00:30]} 14. Nxg6 {[%emt 0:00:30]} fxg6 {[%emt 0:00:30]} 15. Rb1 {[%emt 0:00:30]} Nb6 {[%emt 0:00:30]} 16. Qc1 {[%emt 0:00:30]} Qe7 {[%emt 0:00:30]} 17. Bd1 {[%emt 0:00:30]} Rae8 {[%emt 0:00:30]} 18. g5 {[%emt 0:00:30]} Nd8 {[%emt 0:00:30]} 19. h4 {[%emt 0:00:30]} h6 {[%emt 0:00:30]} 20. Bc2 {[%emt 0:00:30]} Ne6 {[%emt 0:00:30]} 21. Be5 {[%emt 0:00:30]} Nxg5 {[%emt 0:00:30]} 22. hxg5 {[%emt 0:00:30]} Qxg5+ {[%emt 0:00:30]} 23. Kh1 {[%emt 0:00:30]} Qh5+ {[%emt 0:00:30]} 24. Kg2 {[%emt 0:00:30]} Qg5+ {[%emt 0:00:30]} 25. Kh1 {[%emt 0:00:30]} Qh5+ {[%emt 0:00:30]} 1/2-1/2

[Event "2nd Serbian League-Vojvodina 2023"]
[Site "Novi Sad"]
[Date "2023.11.09"]
[Round "11.18"]
[White "Pavkov, Nebojsa"]
[Black "Veljkovic, Vojislav"]
[Result "1-0"]
[ECO "A00"]
[WhiteElo "2199"]
[BlackElo "2163"]
[Annotator "RC"]
[PlyCount "69"]
[EventDate "2023.10.22"]
[EventType "team-tourn"]
[EventCountry "SRB"]
[SourceTitle "playchess.com"]
[Source "ChessBase"]
[SourceQuality "1"]
[TimeControl "40/5400+30:1800+30"]

1. g3 {[%emt 1:31:00]} d5 {[%emt 1:31:00]} 2. Bg2 {[%emt 0:00:30]} e5 {[%emt 0:00:30]} 3. d3 {[%emt 0:00:30]} c6 {[%emt 0:00:30]} 4. Nf3 {[%emt 0:00:30]} Bd6 {[%emt 0:00:30]} 5. c4 {[%emt 0:00:30]} Ne7 {[%emt 0:00:30]} 6. O-O {[%emt 0:00:30]} h6 {[%emt 0:00:30]} 7. e4 {[%emt 0:00:30]} O-O {[%emt 0:00:30]} 8. Nh4 {[%emt 0:00:30]} g5 {[%emt 0:00:30]} 9. Qh5 {[%emt 0:00:30]} gxh4 {[%emt 0:00:30]} 10. Bxh6 {[%emt 0:00:30]} f6 {[%emt 0:00:30]} 11. Bxf8 {[%emt 0:00:30]} Qxf8 {[%emt 0:00:30]} 12. Qxh4 {[%emt 0:00:30]} dxc4 {[%emt 0:00:30]} 13. dxc4 {[%emt 0:00:30]} Be6 {[%emt 0:00:30]} 14. Nd2 Nd7 {[%emt 0:00:30]} 15. Bh3 Qf7 16. Rad1 Kg7 17. Bxe6 Qxe6 18. Qh5 Bc5 19. Nb3 Rh8 20. Qf3 Bb6 21. Rd2 Nf8 22. c5 Bc7 23. Rfd1 Rh6 24. Qc3 {[%emt 0:05:30]} f5 25. Rd6 {[%emt 0:00:30]} Bxd6 {[%emt 0:05:30]} 26. cxd6 {[%emt 0:00:30]} Nd5 {[%emt 0:00:30]} 27. exd5 {[%emt 0:00:30]} Qxd6 {[%emt 0:00:30]} 28. f4 {[%emt 0:00:30]} cxd5 {[%emt 0:00:30]} 29. fxe5 {[%emt 0:00:30]} Qb6+ {[%emt 0:00:30]} 30. Qd4 {[%emt 0:00:30]} Kf7 {[%emt 0:00:30]} 31. Rf1 {[%emt 0:00:30]} Nd7 {[%emt 0:00:30]} 32. Rxf5+ {[%emt 0:00:30]} Ke7 {[%emt 0:00:30]} 33. Kg2 {[%emt 0:00:30]} Qa6 {[%emt 0:00:30]} 34. Qd2 {[%emt 0:00:30]} Rb6 {[%emt 0:00:30]} 35. Qg5+ {[%emt 0:00:30]} 1-0

[Event "2nd Serbian League-Vojvodina 2023"]
[Site "Novi Sad"]
[Date "2023.11.09"]
[Round "11.19"]
[White "Szalai, Kornel"]
[Black "Jakovljev, Zoran"]
[Result "1-0"]
[ECO "B30"]
[WhiteElo "2383"]
[BlackElo "2194"]
[Annotator "RC"]
[PlyCount "85"]
[EventDate "2023.10.22"]
[EventType "team-tourn"]
[EventCountry "SRB"]
[SourceTitle "playchess.com"]
[Source "ChessBase"]
[SourceQuality "1"]
[TimeControl "40/5400+30:1800+30"]

1. Nf3 {[%emt 0:03:37]} c5 {[%emt 0:00:20]} 2. e4 {[%emt 0:00:33]} d6 {[%emt 0:00:03]} 3. g3 {[%emt 0:00:18]} Nc6 {[%emt 0:00:25]} 4. Bg2 {[%emt 0:00:03]} Nf6 {[%emt 0:00:19]} 5. d3 {[%emt 0:00:46]} e6 {[%emt 0:00:25]} 6. O-O {[%emt 0:02:17]} Be7 {[%emt 0:02:34]} 7. Re1 {[%emt 0:01:23]} O-O {[%emt 0:00:11]} 8. c3 {[%emt 0:02:36]} d5 {[%emt 0:01:06]} 9. e5 {[%emt 0:00:20]} Nd7 {[%emt 0:00:03]} 10. h4 {[%emt 0:02:26]} b5 {[%emt 0:00:37]} 11. a4 {[%emt 0:04:11]} b4 {[%emt 0:01:28]} 12. c4 {[%emt 0:01:39]} dxc4 {[%emt 0:00:51]} 13. dxc4 {[%emt 0:00:20]} Qc7 {[%emt 0:00:20]} 14. b3 {[%emt 0:03:59]} Bb7 {[%emt 0:00:15]} 15. Bf4 {[%emt 0:11:45]} Rfd8 {[%emt 0:00:38]} 16. Nbd2 {[%emt 0:00:54]} Nf8 {[%emt 0:00:06]} 17. h5 {[%emt 0:03:55]} Nd4 {[%emt 0:00:40]} 18. Nxd4 {[%emt 0:01:03]} Rxd4 {[%emt 0:00:17]} 19. Bxb7 {[%emt 0:12:41]} Qxb7 {[%emt 0:00:02]} 20. Qe2 {[%emt 0:09:57]} Rad8 {[%emt 0:00:37]} 21. Ne4 {[%emt 0:00:47]} Qc6 {[%emt 0:06:56]} 22. f3 {[%emt 0:03:31]} f5 {[%emt 0:01:44]} 23. exf6 {[%emt 0:03:57]} gxf6 {[%emt 0:05:41]} 24. Rad1 {[%emt 0:01:30]} Qd7 {[%emt 0:02:44]} 25. Nf2 {[%emt 0:00:34]} e5 {[%emt 0:00:33]} 26. Be3 {[%emt 0:00:20]} Rxd1 {[%emt 0:06:05]} 27. Rxd1 {[%emt 0:00:05]} Qc8 {[%emt 0:00:43]} 28. Ng4 {[%emt 0:06:50]} Ne6 {[%emt 0:02:42]} 29. Nh6+ {[%emt 0:00:40]} Kf8 {[%emt 0:00:31]} 30. Rxd8+ {[%emt 0:00:29]} Bxd8 {[%emt 0:04:09]} 31. Qd3 {[%emt 0:00:40]} Qc7 {[%emt 0:17:39]} 32. Qd5 {[%emt 0:01:21]} Qc8 {[%emt 0:01:20]} 33. f4 {[%emt 0:04:03]} exf4 {[%emt 0:03:58]} 34. gxf4 {[%emt 0:00:05]} Kg7 {[%emt 0:00:09]} 35. f5 {[%emt 0:01:33]} Ng5 {[%emt 0:00:04]} 36. Bxg5 {[%emt 0:01:40]} fxg5 {[%emt 0:00:06]} 37. Ng4 {[%emt 0:00:12]} h6 {[%emt 0:02:02]} 38. Qe5+ {[%emt 0:04:31]} Kh7 {[%emt 0:00:45]} 39. Qe4 {[%emt 0:00:04]} Qc7 {[%emt 0:00:54]} 40. f6+ {[%emt 0:00:06]} Kh8 {[%emt 0:00:36]} 41. Qe8+ {[%emt 0:43:19]} Kh7 {[%emt 0:30:14]} 42. Qg6+ {[%emt 0:00:00]} Kh8 {[%emt 0:00:07]} 43. Qxh6+ {[%emt 0:00:00]} 1-0

[Event "2nd Serbian League-Vojvodina 2023"]
[Site "Novi Sad"]
[Date "2023.11.09"]
[Round "11.20"]
[White "Popovic, Zoran"]
[Black "Nadj Hedjesi, Balind"]
[Result "1-0"]
[ECO "A21"]
[WhiteElo "2210"]
[BlackElo "2227"]
[Annotator "RC"]
[PlyCount "151"]
[EventDate "2023.10.22"]
[EventType "team-tourn"]
[EventCountry "SRB"]
[SourceTitle "playchess.com"]
[Source "ChessBase"]
[SourceQuality "1"]
[TimeControl "40/5400+30:1800+30"]

1. d4 {[%emt 1:31:00]} d6 {[%emt 1:31:00]} 2. c4 {[%emt 0:00:30]} e5 {[%emt 0:00:30]} 3. Nc3 {[%emt 0:00:30]} exd4 {[%emt 0:00:30]} 4. Qxd4 {[%emt 0:00:30]} Nc6 {[%emt 0:00:30]} 5. Qd2 {[%emt 0:00:30]} g6 {[%emt 0:00:30]} 6. e4 {[%emt 0:00:30]} Bh6 {[%emt 0:00:30]} 7. Qd1 {[%emt 0:00:30]} Bg7 {[%emt 0:00:30]} 8. Bd3 {[%emt 0:00:30]} Nge7 {[%emt 0:00:30]} 9. Nge2 {[%emt 0:00:30]} O-O {[%emt 0:00:30]} 10. O-O {[%emt 0:00:30]} f5 {[%emt 0:00:30]} 11. Be3 {[%emt 0:00:30]} Ne5 {[%emt 0:00:30]} 12. Qd2 {[%emt 0:00:30]} h6 {[%emt 0:00:30]} 13. Rad1 {[%emt 0:00:30]} Kh7 {[%emt 0:00:30]} 14. b3 {[%emt 0:00:30]} Nxd3 {[%emt 0:00:30]} 15. Qxd3 {[%emt 0:00:30]} Nc6 {[%emt 0:00:30]} 16. c5 {[%emt 0:00:30]} dxc5 {[%emt 0:00:30]} 17. Bxc5 {[%emt 0:00:30]} Qxd3 {[%emt 0:00:30]} 18. Rxd3 {[%emt 0:00:30]} fxe4 {[%emt 0:00:30]} 19. Nxe4 {[%emt 0:00:30]} Re8 {[%emt 0:00:30]} 20. N2g3 {[%emt 0:00:30]} b6 {[%emt 0:00:30]} 21. Be3 {[%emt 0:00:30]} Ne5 {[%emt 0:00:30]} 22. Rd2 {[%emt 0:00:30]} Ba6 {[%emt 0:00:30]} 23. Rfd1 {[%emt 0:00:30]} c5 {[%emt 0:00:30]} 24. Rd6 {[%emt 0:00:30]} Bb7 {[%emt 0:00:30]} 25. Nf6+ {[%emt 0:00:30]} Bxf6 {[%emt 0:00:30]} 26. Rxf6 {[%emt 0:00:30]} Rad8 {[%emt 0:00:30]} 27. Rfd6 {[%emt 0:00:30]} Rxd6 {[%emt 0:00:30]} 28. Rxd6 {[%emt 0:00:30]} Re7 {[%emt 0:00:30]} 29. h3 {[%emt 0:00:30]} Nf7 {[%emt 0:00:30]} 30. Rd1 {[%emt 0:00:30]} a5 {[%emt 0:00:30]} 31. Ne2 {[%emt 0:00:30]} g5 {[%emt 0:00:30]} 32. Nc3 {[%emt 0:00:30]} Bc6 {[%emt 0:00:30]} 33. Nd5 {[%emt 0:00:30]} Rb7 {[%emt 0:00:30]} 34. f4 {[%emt 0:00:30]} gxf4 {[%emt 0:00:30]} 35. Nxf4 {[%emt 0:00:30]} a4 {[%emt 0:00:30]} 36. Bc1 {[%emt 0:00:30]} axb3 {[%emt 0:00:30]} 37. axb3 {[%emt 0:00:30]} Ra7 {[%emt 0:00:30]} 38. Bb2 {[%emt 0:00:30]} Ra2 {[%emt 0:00:30]} 39. Bf6 {[%emt 0:00:30]} Ra7 {[%emt 0:00:30]} 40. Rd3 {[%emt 0:00:30]} Rd7 {[%emt 0:00:30]} 41. Rg3 {[%emt 0:30:30]} Nd6 {[%emt 0:30:30]} 42. Be5 {[%emt 0:00:30]} Nf5 {[%emt 0:00:30]} 43. Rg6 {[%emt 0:00:30]} Nd4 {[%emt 0:00:30]} 44. Rg4 {[%emt 0:00:30]} Re7 {[%emt 0:00:30]} 45. Nh5 {[%emt 0:00:30]} Rf7 {[%emt 0:00:30]} 46. Nf6+ Rxf6 {[%emt 0:00:30]} 47. Bxf6 {[%emt 0:01:00]} Ne6 {[%emt 0:00:30]} 48. Be5 {[%emt 0:00:30]} Bd5 {[%emt 0:00:30]} 49. Rg3 {[%emt 0:00:30]} c4 {[%emt 0:00:30]} 50. b4 {[%emt 0:00:30]} h5 {[%emt 0:00:30]} 51. h4 {[%emt 0:00:30]} Be4 {[%emt 0:00:30]} 52. Re3 {[%emt 0:00:30]} Bd3 {[%emt 0:00:30]} 53. g3 {[%emt 0:00:30]} Kg6 {[%emt 0:00:30]} 54. Bc3 {[%emt 0:00:30]} Ng7 {[%emt 0:00:30]} 55. Bxg7 {[%emt 0:00:30]} Kxg7 56. Kf2 {[%emt 0:00:30]} Kf6 {[%emt 0:01:00]} 57. Rf3+ {[%emt 0:00:30]} Ke5 {[%emt 0:00:30]} 58. Ke3 {[%emt 0:00:30]} Bf5 {[%emt 0:00:30]} 59. Kd2 {[%emt 0:00:30]} Be4 {[%emt 0:00:30]} 60. Rf8 {[%emt 0:00:30]} Kd4 {[%emt 0:00:30]} 61. Rc8 {[%emt 0:00:30]} Bf3 {[%emt 0:00:30]} 62. b5 {[%emt 0:00:30]} Be4 {[%emt 0:00:30]} 63. Rc6 {[%emt 0:00:30]} Bd3 64. Rxb6 {[%emt 0:00:30]} c3+ {[%emt 0:01:00]} 65. Kc1 {[%emt 0:00:30]} Kc5 {[%emt 0:00:30]} 66. Rc6+ {[%emt 0:00:30]} Kxb5 {[%emt 0:00:30]} 67. Rxc3 {[%emt 0:00:30]} Bc4 {[%emt 0:00:30]} 68. Kd2 {[%emt 0:00:30]} Kc5 {[%emt 0:00:30]} 69. Ke3 {[%emt 0:00:30]} Kd5 {[%emt 0:00:30]} 70. Kf4 {[%emt 0:00:30]} Be2 {[%emt 0:00:30]} 71. Re3 {[%emt 0:00:30]} Bg4 {[%emt 0:00:30]} 72. Re1 Kd6 {[%emt 0:00:30]} 73. Kg5 {[%emt 0:01:00]} Kd7 {[%emt 0:00:30]} 74. Re4 {[%emt 0:00:30]} Bf3 {[%emt 0:00:30]} 75. Rf4 {[%emt 0:00:30]} Be2 {[%emt 0:00:30]} 76. Rd4+ {[%emt 0:00:30]} 1-0

[Event "2nd Serbian League-Vojvodina 2023"]
[Site "Novi Sad"]
[Date "2023.11.09"]
[Round "11.21"]
[White "Farkas, Tibor"]
[Black "Telecki, Ivan"]
[Result "1-0"]
[ECO "B06"]
[WhiteElo "2210"]
[BlackElo "2260"]
[Annotator "RC"]
[PlyCount "44"]
[EventDate "2023.10.22"]
[EventType "team-tourn"]
[EventCountry "SRB"]
[SourceTitle "playchess.com"]
[Source "ChessBase"]
[SourceQuality "1"]
[TimeControl "40/5400+30:1800+30"]

1. e4 {[%emt 0:01:32]} g6 {[%emt 0:00:05]} 2. d4 {[%emt 0:00:24]} d6 {[%emt 0:00:07]} 3. Nc3 {[%emt 0:01:45]} Bg7 {[%emt 0:00:08]} 4. Be3 {[%emt 0:01:06]} Nd7 {[%emt 0:00:23]} 5. Qd2 {[%emt 0:01:32]} c6 {[%emt 0:04:44]} 6. h4 {[%emt 0:01:43]} h5 {[%emt 0:04:31]} 7. Nh3 {[%emt 1:25:58]} Nb6 {[%emt 0:13:38]} 8. Ng5 {[%emt 0:00:30]} d5 {[%emt 0:07:29]} 9. f3 {[%emt 0:00:00]} e6 {[%emt 0:16:31]} 10. O-O-O {[%emt 0:01:00]} Nf6 {[%emt 0:05:28]} 11. Be2 {[%emt 0:00:00]} Qe7 {[%emt 0:09:30]} 12. Kb1 {[%emt 0:00:00]} a5 {[%emt 0:08:16]} 13. e5 {[%emt 0:00:00]} Nfd7 {[%emt 0:02:52]} 14. f4 {[%emt 0:00:00]} Bf8 {[%emt 0:01:49]} 15. Rdg1 {[%emt 0:00:00]} c5 {[%emt 0:22:29]} 16. Nb5 {[%emt 0:00:00]} Qd8 {[%emt 0:00:00]} 17. dxc5 {[%emt 0:00:00]} Nxc5 {[%emt 0:00:00]} 18. b3 {[%emt 0:00:00]} Bd7 {[%emt 0:00:00]} 19. Nd6+ {[%emt 0:00:00]} Bxd6 {[%emt 0:00:00]} 20. exd6 {[%emt 0:00:00]} Rc8 {[%emt 0:00:04]} 21. Bxc5 {[%emt 0:05:30]} O-O {[%emt 0:02:56]} 22. Qd4 {[%emt 0:00:30]} f6 {[%emt 0:00:30]} 1-0